bitfinex/quotes_BTCUSD_20251202
["timestamp","ask_amount","ask_price","bid_price","bid_amount"]
[1764691571757,0.10125,91121.0,91120.0,0.00051398]
[1764691571993,0.09625,91121.0,91120.0,0.00051398]
[1764691572948,0.01658,91121.0,91120.0,0.00051398]
[1764691573156,0.01642,91131.0,91128.0,0.23044508]
[1764691573366,0.0109708,91151.0,91120.0,0.05915851]
[1764691573367,0.01097044,91154.0,91143.0,0.21943539]
[1764691573588,0.01097104,91149.0,91142.0,0.2194378]
[1764691573801,0.01097104,91149.0,91142.0,0.21943766]
[1764691574019,0.01776,91150.0,91147.0,0.01097128]
[1764691574270,0.01776,91150.0,91142.0,0.01097189]
[1764691574443,0.01097249,91137.0,91124.0,0.0178]
[1764691574650,0.23042257,91137.0,91131.0,0.2194631]
[1764691575021,0.03284306,91145.0,91120.0,0.00051398]
[1764691575022,0.01097309,91132.0,91120.0,0.00051398]
[1764691575225,0.03859,91121.0,91120.0,0.00051398]
[1764691575470,0.03859,91121.0,91087.0,0.09296]
[1764691575471,0.01097984,91076.0,91065.0,0.23060248]
[1764691575691,0.21960376,91074.0,91066.0,0.01098104]
[1764691575917,0.0178,91075.0,91072.0,0.23058484]
[1764691576395,0.01098044,91071.0,91065.0,0.01109522]
[1764691576608,0.21962004,91067.0,91065.0,0.00011406]
[1764691577015,0.0495,91066.0,91065.0,0.00011406]
[1764691577428,0.0495,91066.0,91060.0,0.0004]
[1764691577429,0.241625,91061.0,91060.0,0.0004]
[1764691577628,0.259425,91061.0,91060.0,0.0004]
[1764691577838,0.28682299,91061.0,91060.0,0.0004]
[1764691578250,0.06719,91061.0,91060.0,0.0004]
[1764691578724,0.21966363,91049.0,91041.0,0.01098406]
[1764691578923,0.0178,91048.0,91046.0,0.23065255]
[1764691579353,0.0178,91058.0,91052.0,0.01098273]
[1764691579548,0.0178,91058.0,91041.0,0.00011406]
[1764691579549,0.0747,91100.0,91080.0,0.01097935]
[1764691579790,0.03284306,91082.0,91071.0,0.01098044]
[1764691580034,0.01097875,91085.0,91079.0,0.01097947]
[1764691580035,0.0178,91085.0,91079.0,0.01097947]
[1764691580258,0.0252,91100.0,91097.0,0.0109773]
[1764691580479,0.0178,91098.0,91097.0,0.21954619]
[1764691580685,0.03284306,91108.0,91106.0,0.2195245]
[1764691580895,0.03284306,91108.0,91102.0,0.0109767]
[1764691580896,0.0178,91107.0,91104.0,0.01097646]
[1764691581099,0.0178,91107.0,91101.0,0.21953511]
[1764691581333,0.0178,91107.0,91080.0,1.09062708]
[1764691581532,0.01097827,91089.0,91084.0,0.01097887]
[1764691581947,0.23052377,91097.0,91091.0,0.01097803]
[1764691582359,0.03284306,91094.0,91085.0,0.01097875]
[1764691582563,0.03284306,91094.0,91089.0,0.23054374]
[1764691582772,0.00011372,91108.0,91100.0,0.01097694]
[1764691582973,0.00011372,91108.0,91107.0,0.2195221]
[1764691583542,0.00011372,91108.0,91106.0,0.2195245]
[1764691583752,0.00011372,91108.0,91100.0,0.21953817]
[1764691583954,0.01097767,91094.0,91082.0,0.01097911]
[1764691584133,0.01097718,91098.0,91090.0,0.01097815]
[1764691584333,0.01097718,91098.0,91080.0,1.09062708]
[1764691584334,0.0109767,91102.0,91095.0,0.01097755]
[1764691584540,0.01097718,91098.0,91093.0,0.01097779]
[1764691584758,0.01097791,91092.0,91081.0,0.01097923]
[1764691584936,0.01097791,91092.0,91088.0,0.01097839]
[1764691585136,0.01097815,91090.0,91082.0,0.01097911]
[1764691585415,0.01097899,91083.0,91079.0,0.01097947]
[1764691585626,0.2305579,91084.0,91080.0,0.01097935]
[1764691585822,0.03284306,91091.0,91070.0,0.01098056]
[1764691586024,0.01097984,91076.0,91067.0,0.01098092]
[1764691586492,0.01097984,91076.0,91071.0,0.01098044]
[1764691586699,0.01097972,91077.0,91073.0,0.23058346]
[1764691586922,0.21967021,91046.0,91041.0,0.01098406]
[1764691587132,0.02513,91072.0,91049.0,0.01098309]
[1764691587133,0.01098213,91057.0,91049.0,0.01098309]
[1764691587343,0.23063352,91054.0,91050.0,0.01098297]
[1764691587551,0.01098213,91057.0,91049.0,0.23064401]
[1764691587552,0.23062591,91057.0,91052.0,0.01098273]
[1764691587762,0.0178,91061.0,91055.0,0.01098237]
[1764691587971,0.03284306,91060.0,91056.0,0.01098225]
[1764691588172,0.03284306,91060.0,91051.0,0.01098285]
[1764691588378,0.0178,91061.0,91056.0,0.01098225]
[1764691588587,0.0178,91061.0,91058.0,0.01098201]
[1764691588784,0.0178,91061.0,91056.0,0.01098225]
[1764691588986,0.0178,91061.0,91050.0,0.01098297]
[1764691589187,0.0178,91061.0,91059.0,0.21963592]
[1764691589599,0.01098189,91059.0,91052.0,0.01098273]
[1764691589802,0.46855029,91097.0,90940.0,2.00340762]
[1764691589803,0.02945637,91097.0,91069.0,0.01098068]
[1764691590007,0.0178,91080.0,91078.0,0.01097959]
[1764691590208,0.0178,91080.0,91078.0,0.2305713]
[1764691590417,0.0178,91080.0,91078.0,0.01097959]
[1764691590624,0.0178,91080.0,91077.0,0.23057232]
[1764691590863,0.23053038,91095.0,91088.0,0.01097839]
[1764691591034,0.23053515,91093.0,91089.0,0.01097827]
[1764691591281,0.01097851,91087.0,91070.0,1.09062708]
[1764691591467,0.01097875,91085.0,91080.0,0.01097935]
[1764691591722,0.01097851,91087.0,91079.0,0.21958771]
[1764691591927,0.03610646,91104.0,91083.0,0.01097899]
[1764691592135,0.01097899,91083.0,91079.0,0.01097947]
[1764691592348,0.26337796,91093.0,91088.0,0.01097839]
[1764691592567,0.02945637,91112.0,91088.0,0.01097839]
[1764691592568,0.21953901,91100.0,91093.0,0.21955429]
[1764691592782,0.0109767,91102.0,91093.0,0.21955429]
[1764691592988,0.03610646,91104.0,91093.0,0.21955429]
[1764691593195,0.01097767,91094.0,91080.0,0.01097935]
[1764691593410,0.01097767,91094.0,91070.0,1.10842708]
[1764691593411,0.01097791,91092.0,91087.0,0.01097851]
[1764691593613,0.01097803,91091.0,91086.0,0.01097863]
[1764691593826,0.2195351,91102.0,91090.0,0.01097815]
[1764691594031,0.03284306,91128.0,91093.0,0.21955369]
[1764691594032,0.03450614,91106.0,91093.0,0.21955369]
[1764691594243,0.01097682,91101.0,91093.0,0.21955369]
[1764691594453,0.02877706,91099.0,91093.0,0.21955369]
[1764691594667,0.0178,91099.0,91082.0,0.21958026]
[1764691594879,0.0178,91099.0,91062.0,0.43925994]
[1764691594880,0.01097875,91085.0,91072.0,0.01098032]
[1764691595093,0.03284306,91087.0,91079.0,0.01097947]
[1764691595308,0.03284306,91087.0,91082.0,0.01097911]
[1764691595511,0.04382085,91093.0,91090.0,0.01097815]
[1764691595741,0.26337766,91093.0,91089.0,0.23054302]
[1764691595947,0.00011368,91095.0,91091.0,0.21956065]
[1764691596150,0.03284306,91093.0,91079.0,0.01097947]
[1764691596355,0.01097839,91088.0,91083.0,0.01097899]
[1764691596579,0.21956634,91089.0,91085.0,0.01097875]
[1764691596787,0.21957445,91086.0,91077.0,0.01097972]
[1764691596994,0.01097851,91087.0,91083.0,0.01097899]
[1764691597196,0.21957422,91086.0,91081.0,0.22716251]
[1764691597402,0.03284306,91090.0,91087.0,0.01097851]
[1764691597608,0.01097803,91091.0,91087.0,0.23054761]
[1764691597803,0.2305231,91098.0,91092.0,0.01097791]
[1764691598007,0.01097658,91103.0,91093.0,0.21955455]
[1764691598143,0.02945637,91115.0,91093.0,0.21955455]
[1764691598347,0.01097586,91109.0,91094.0,0.15301]
[1764691598550,0.23049165,91110.0,91094.0,0.15301]
[1764691598777,0.23049165,91110.0,91090.0,0.21956169]
[1764691598778,0.01097694,91100.0,91090.0,0.21956169]
[1764691598991,0.01097706,91099.0,91093.0,0.21955415]
[1764691599545,0.01097646,91104.0,91093.0,0.21955415]
[1764691599758,0.23050676,91104.0,91093.0,0.21955415]
[1764691599961,0.21952647,91106.0,91093.0,0.21955415]
[1764691600315,0.0109755,91112.0,91093.0,0.31155415]
[1764691600512,0.01097622,91106.0,91093.0,0.21955415]
[1764691600739,0.23050532,91105.0,91093.0,0.21955415]
[1764691600916,0.23049663,91108.0,91093.0,0.21955415]
[1764691601152,0.0178,91115.0,91093.0,0.21955415]
[1764691601286,0.01097634,91105.0,91093.0,0.21955415]
[1764691601483,0.01097779,91093.0,91085.0,0.01097875]
[1764691601682,0.03610706,91099.0,91090.0,0.01097815]
[1764691601683,0.03284306,91098.0,91090.0,0.01097815]
[1764691601925,0.23052411,91097.0,91093.0,0.21955514]
[1764691602124,0.02513,91099.0,91093.0,0.21955514]
[1764691602284,0.01097743,91096.0,91092.0,0.01097791]
[1764691602496,0.01097718,91098.0,91093.0,0.21955491]
[1764691602497,0.04382024,91098.0,91093.0,0.21955491]
[1764691602865,0.23052427,91097.0,91092.0,0.01097791]
[1764691603017,0.23064362,91095.0,91091.0,0.21956065]
[1764691603224,0.01097947,91079.0,91070.0,1.09062708]
[1764691603424,0.01097911,91082.0,91051.0,0.32948208]
[1764691603425,0.01098164,91061.0,91056.0,0.01098225]
[1764691603636,0.01098164,91061.0,91050.0,1.09062708]
[1764691603637,0.01098249,91054.0,91046.0,0.21966744]
[1764691603985,0.03284306,91061.0,91053.0,0.21965166]
[1764691604190,0.23063289,91054.0,91048.0,0.01098321]
[1764691604398,0.03284306,91061.0,91040.0,1.31030982]
[1764691604399,0.03284306,91061.0,91052.0,0.01098273]
[1764691604685,0.23060513,91065.0,91061.0,0.01098164]
[1764691604813,0.21963161,91062.0,91061.0,0.00011406]
[1764691605226,0.02514,91071.0,91061.0,0.00011406]
[1764691605586,0.2195944,91077.0,91071.0,0.01098044]
[1764691605799,0.01776,91071.0,91061.0,0.0110957]
[1764691605998,0.01098128,91064.0,91061.0,0.00011406]
[1764691606228,0.21962928,91063.0,91061.0,0.00011406]
[1764691607835,0.03284306,91066.0,91061.0,0.00011406]
[1764691608051,0.2196282,91063.0,91061.0,0.00011406]
[1764691608245,0.00049,91062.0,91061.0,0.00011406]
[1764691608447,0.0495,91062.0,91061.0,0.00011406]
[1764691608645,0.26913058,91062.0,91061.0,0.00011406]
[1764691608868,0.24373289,91062.0,91061.0,0.00011406]
[1764691609073,0.22012058,91062.0,91061.0,0.00011406]
[1764691610321,0.03284306,91066.0,91061.0,0.00011406]
[1764691610525,0.21962885,91063.0,91061.0,0.00011406]
[1764691610768,0.01098128,91064.0,91061.0,0.00011406]
[1764691610906,0.21963058,91062.0,91061.0,0.00011406]
[1764691611102,0.21962816,91063.0,91061.0,0.00011406]
[1764691611770,0.0495,91062.0,91061.0,0.00011406]
[1764691612554,0.17084821,91062.0,91061.0,0.00011406]
[1764691612751,0.01098526,91031.0,91027.0,9e-05]
[1764691613081,0.21971153,91029.0,91027.0,0.00047073]
[1764691613284,0.00049,91028.0,91027.0,0.00047073]
[1764691613459,0.0495,91028.0,91027.0,0.00047073]
[1764691613663,0.00049,91028.0,91027.0,0.00047073]
[1764691614103,0.03284306,91029.0,91028.0,0.21971261]
[1764691614269,0.01098309,91049.0,91035.0,0.01098478]
[1764691614559,0.01776,91042.0,91036.0,0.01098466]
[1764691614775,0.01776,91042.0,91039.0,0.0109843]
[1764691614910,0.01776,91042.0,91039.0,0.23066902]
[1764691615114,0.01098345,91046.0,91042.0,0.23066091]
[1764691615335,0.01098345,91046.0,91041.0,0.01098406]
[1764691615336,0.23065603,91045.0,91041.0,0.01098406]
[1764691615538,0.23065871,91044.0,91039.0,0.23066938]
[1764691615743,0.01098382,91043.0,91040.0,0.01098418]
[1764691615911,0.01098406,91041.0,91038.0,0.01098442]
[1764691616114,0.23066139,91043.0,91039.0,0.23066819]
[1764691616345,0.01098249,91054.0,91042.0,0.01098394]
[1764691616512,0.05060306,91050.0,91044.0,0.0109837]
[1764691616730,0.05060306,91050.0,91045.0,0.01098357]
[1764691616912,0.06158603,91050.0,91046.0,0.21966917]
[1764691617116,0.23064859,91048.0,91045.0,0.01098357]
[1764691617338,0.05060306,91050.0,91047.0,0.01098333]
[1764691617541,0.21966194,91049.0,91045.0,0.23065355]
[1764691617736,0.01098321,91048.0,91045.0,0.23065355]
[1764691617937,0.04049056,91066.0,91045.0,0.01098357]
[1764691618150,0.03284306,91055.0,91047.0,0.01098333]
[1764691618358,0.03284306,91055.0,91044.0,0.21967224]
[1764691618359,0.01098273,91052.0,91044.0,0.23065564]
[1764691618649,0.2306509,91047.0,91034.0,0.0109849]
[1764691618858,0.01098321,91048.0,91041.0,0.01098406]
[1764691619054,0.24840149,91051.0,91047.0,0.01098333]
[1764691619271,0.01776,91051.0,91049.0,0.21966133]
[1764691619481,0.01098309,91049.0,91045.0,0.01098357]
[1764691619630,0.01098309,91049.0,90959.0,0.05488027]
[1764691619631,0.01098394,91042.0,91029.0,0.01098551]
[1764691619832,0.04382724,91040.0,91035.0,0.01098478]
[1764691620072,0.04382724,91040.0,91036.0,0.23067635]
[1764691620276,0.04382724,91040.0,91018.0,0.04549]
[1764691620277,0.00049,91036.0,91018.0,0.04549]
[1764691620486,0.01098538,91030.0,91020.0,0.0004]
[1764691620688,0.03181,91028.0,91020.0,0.22013032]
[1764691620995,0.03279,91028.0,91020.0,0.0004]
[1764691621133,0.01776,91029.0,91027.0,0.22018575]
[1764691621334,0.01776,91029.0,91027.0,0.00047073]
[1764691621335,0.03181,91028.0,91027.0,0.00047073]
[1764691621542,0.01098466,91036.0,91027.0,0.00047073]
[1764691621543,0.01098237,91055.0,91034.0,0.21969813]
[1764691621791,0.01098237,91055.0,91040.0,0.01098418]
[1764691621792,0.21966479,91048.0,91040.0,0.01098418]
[1764691621999,0.01098442,91038.0,91021.0,0.01706335]
[1764691622195,0.01098526,91031.0,91020.0,0.0004]
[1764691622410,0.08131,91028.0,91020.0,0.0004]
[1764691622641,0.01098285,91051.0,91040.0,0.01098418]
[1764691622901,0.06158603,91050.0,91040.0,0.01098418]
[1764691623098,0.05060306,91050.0,91044.0,0.0109837]
[1764691623311,0.0495,91064.0,91055.0,0.21964746]
[1764691623312,0.01098128,91064.0,91055.0,0.21964746]
[1764691623506,0.01098201,91058.0,91048.0,0.23064543]
[1764691623679,0.01098201,91058.0,91027.0,9e-05]
[1764691623680,0.03284306,91051.0,91040.0,0.2306663]
[1764691623900,0.01098201,91058.0,91030.0,1.09062708]
[1764691623901,0.01776,91061.0,91034.0,0.0109849]
[1764691624094,0.01098201,91058.0,91053.0,0.01098261]
[1764691624304,0.01098177,91060.0,91040.0,1.10161126]
[1764691624512,0.23064275,91050.0,91045.0,0.23065487]
[1764691624703,0.03284306,91051.0,91047.0,0.01098333]
[1764691624905,0.21966734,91047.0,91044.0,0.0109837]
[1764691625252,0.01098478,91035.0,91010.0,0.0004]
[1764691625462,0.21971052,91029.0,91016.0,0.21974087]
[1764691625654,0.01098514,91032.0,91023.0,0.21972275]
[1764691625849,0.01098406,91041.0,91027.0,0.01107575]
[1764691626038,0.01098502,91033.0,91027.0,9e-05]
[1764691626235,0.21971054,91029.0,91027.0,9e-05]
[1764691626434,0.01776,91028.0,91027.0,9e-05]
[1764691627068,0.05060306,91028.0,91027.0,9e-05]
[1764691627474,0.05109306,91028.0,91027.0,9e-05]
[1764691627761,0.05060306,91028.0,91027.0,9e-05]
[1764691628184,0.03284306,91028.0,91027.0,9e-05]
[1764691628395,0.05060306,91028.0,91027.0,9e-05]
[1764691628595,0.01098418,91040.0,91027.0,9e-05]
[1764691628796,0.03284306,91034.0,91031.0,0.01098526]
[1764691629138,0.21971195,91029.0,91027.0,9e-05]
[1764691629578,0.03284306,91034.0,91027.0,9e-05]
[1764691629786,0.01098514,91032.0,91027.0,9e-05]
[1764691629988,0.01098526,91031.0,91027.0,9e-05]
[1764691630193,0.03181,91033.0,91027.0,0.01107575]
[1764691630506,0.01098538,91030.0,91027.0,9e-05]
[1764691630706,0.01776,91029.0,91027.0,9e-05]
[1764691631331,0.01776,91029.0,91022.0,0.23071323]
[1764691631332,0.00091,91027.0,91022.0,0.23071323]
[1764691631538,0.00091,91027.0,91024.0,0.2197219]
[1764691631842,0.00091,91027.0,91025.0,0.21971985]
[1764691632058,0.00091,91027.0,91025.0,0.21971894]
[1764691632290,0.01098611,91024.0,91020.0,0.0004]
[1764691632502,0.01098611,91024.0,91020.0,0.00078073]
[1764691632681,0.21972849,91022.0,91020.0,0.00078073]
[1764691633148,0.03333306,91021.0,91020.0,0.00078073]
[1764691633355,0.00049,91021.0,91020.0,0.00078073]
[1764691633566,0.03284306,91021.0,91020.0,0.00078073]
[1764691633981,0.00091,91027.0,91022.0,0.01098635]
[1764691634187,0.01776,91023.0,91020.0,0.00078073]
[1764691634393,0.24847178,91023.0,91020.0,0.00078073]
[1764691634601,0.01776,91023.0,91020.0,0.00078073]
[1764691634780,0.01776,91023.0,91020.0,0.01176732]
[1764691634924,0.21972709,91022.0,91020.0,0.00078073]
[1764691635326,0.03333306,91021.0,91020.0,0.00078073]
[1764691636087,0.03284306,91021.0,91020.0,8.073e-05]
[1764691636506,0.02874623,91023.0,91020.0,8.073e-05]
[1764691636729,0.23068966,91032.0,91021.0,0.01098647]
[1764691637017,0.21972047,91025.0,91021.0,0.23071577]
[1764691637221,0.23748306,91024.0,91020.0,0.01106732]
[1764691637423,0.03284306,91021.0,91020.0,8.073e-05]
[1764691638032,0.25257257,91021.0,91020.0,8.073e-05]
[1764691638280,0.30550856,91021.0,91020.0,8.073e-05]
[1764691638856,0.32916603,91021.0,91020.0,8.073e-05]
[1764691639753,0.29791603,91021.0,91020.0,8.073e-05]
[1764691640260,0.34692603,91021.0,91020.0,8.073e-05]
[1764691640783,0.29791603,91021.0,91020.0,8.073e-05]
[1764691640967,0.28015603,91021.0,91020.0,8.073e-05]
[1764691641351,0.29791603,91021.0,91020.0,8.073e-05]
[1764691641569,0.34692603,91021.0,91020.0,8.073e-05]
[1764691641976,0.3469219,91021.0,91020.0,8.073e-05]
[1764691642178,0.32326856,91021.0,91020.0,8.073e-05]
[1764691642632,0.34692218,91021.0,91020.0,8.073e-05]
[1764691643356,0.36891419,91021.0,91020.0,8.073e-05]
[1764691643579,0.24681912,91021.0,91020.0,8.073e-05]
[1764691643819,0.05293599,91021.0,91020.0,8.073e-05]
[1764691644021,0.2409255,91021.0,91020.0,8.073e-05]
[1764691644224,0.03627905,91021.0,91020.0,8.073e-05]
[1764691644399,0.01776,91023.0,91020.0,0.21981265]
[1764691644655,0.00091,91027.0,91026.0,0.33340744]
[1764691644851,0.00091,91027.0,91026.0,0.11369]
[1764691645054,0.00091,91027.0,91026.0,0.04939]
[1764691646096,0.21972267,91024.0,91020.0,0.23079879]
[1764691646302,0.21972752,91022.0,91020.0,8.073e-05]
[1764691646509,0.08234306,91021.0,91020.0,8.073e-05]
[1764691646715,0.10991796,91021.0,91020.0,8.073e-05]
[1764691647841,0.12767796,91021.0,91020.0,8.073e-05]
[1764691651196,0.14966997,91021.0,91020.0,8.073e-05]
[1764691651370,0.17923297,91021.0,91020.0,8.073e-05]
[1764691651569,0.12767796,91021.0,91020.0,8.073e-05]
[1764691651929,0.12718796,91021.0,91020.0,8.073e-05]
[1764691652168,0.10353901,91021.0,91020.0,8.073e-05]
[1764691653910,0.02119595,91021.0,91020.0,8.073e-05]
[1764691655131,0.01776,91021.0,91020.0,8.073e-05]
[1764691655306,0.00091,91027.0,91024.0,0.01098611]
[1764691655508,0.00091,91027.0,91026.0,0.06486]
[1764691655739,0.02955595,91062.0,91059.0,0.23061705]
[1764691655957,0.00343468,91061.0,91060.0,0.21963307]
[1764691656360,0.00343468,91061.0,91060.0,0.28133307]
[1764691656562,0.00343468,91061.0,91058.0,0.01098201]
[1764691656764,0.00343468,91060.0,91056.0,0.21964401]
[1764691656977,0.21962625,91064.0,91056.0,0.21964401]
[1764691656978,0.00343468,91059.0,91058.0,0.21963816]
[1764691657344,0.00037897,91061.0,91058.0,0.21963816]
[1764691657345,0.00343468,91060.0,91058.0,0.22542175]
[1764691657664,0.00037897,91061.0,91059.0,0.00575412]
[1764691657839,0.00343453,91060.0,91056.0,0.01098225]
[1764691658043,0.00343453,91059.0,91056.0,0.2306273]
[1764691658373,0.00343453,91059.0,91044.0,0.2374339]
[1764691658374,0.01098273,91052.0,91046.0,0.21966812]
[1764691658517,0.00343453,91051.0,91050.0,0.2306405]
[1764691658712,0.03272,91058.0,91054.0,0.21964939]
[1764691658939,0.00343475,91057.0,91055.0,0.23062905]
[1764691659292,0.2196382,91059.0,91056.0,0.23062691]
[1764691659432,0.0240423,91061.0,91058.0,0.23062172]
[1764691659643,0.00343474,91060.0,91058.0,0.23062172]
[1764691659854,0.00037897,91061.0,91060.0,0.2196354]
[1764691660054,0.00037897,91061.0,91060.0,0.2813354]
[1764691660255,0.00037897,91061.0,91060.0,0.3792954]
[1764691661556,0.00037897,91061.0,91060.0,0.4012874]
[1764691661761,0.00037897,91061.0,91060.0,0.3792954]
[1764691662335,0.00037897,91061.0,91060.0,0.2813354]
[1764691662468,0.00037897,91061.0,91060.0,0.2196354]
[1764691663115,0.00037897,91061.0,91060.0,0.22536006]
[1764691663732,0.00037897,91061.0,91060.0,0.38502006]
[1764691665110,0.00037897,91061.0,90960.0,0.0004]
[1764691665111,0.03226,91001.0,90960.0,0.0004]
[1764691665336,0.81469454,90980.0,90950.0,0.27731551]
[1764691665537,0.01099033,90989.0,90977.0,0.0010996]
[1764691665736,0.21980878,90989.0,90977.0,0.0010996]
[1764691666076,0.01099021,90990.0,90979.0,0.00238628]
[1764691666371,0.21980189,90992.0,90979.0,0.00238628]
[1764691666372,0.00343687,90989.0,90979.0,0.02206382]
[1764691666513,0.00343687,90988.0,90980.0,0.01788]
[1764691666718,0.00343687,90987.0,90981.0,0.02198261]
[1764691666939,0.00343687,90986.0,90981.0,0.02198261]
[1764691667192,0.00343687,90985.0,90981.0,0.02198261]
[1764691667324,0.2198237,90982.0,90981.0,0.02198261]
[1764691667536,0.00343665,90982.0,90980.0,0.01788]
[1764691667739,0.21981886,90984.0,90981.0,0.09796]
[1764691668037,0.01098719,91015.0,90992.0,0.01098997]
[1764691668347,0.21977235,91004.0,90995.0,0.01098961]
[1764691668568,0.00343656,91003.0,90995.0,0.02197922]
[1764691668802,0.02699789,91002.0,90998.0,0.01098925]
[1764691669008,0.02699789,91001.0,90999.0,0.02886913]
[1764691669212,0.02699789,91000.0,90999.0,0.34661176]
[1764691670397,0.02699021,91000.0,90999.0,0.34661176]
[1764691670784,0.02699021,91000.0,90999.0,0.11584]
[1764691670987,0.02699021,91000.0,90999.0,0.13781826]
[1764691671214,0.24329438,91017.0,91004.0,0.23075736]
[1764691671388,0.21974399,91015.0,91009.0,0.01098792]
[1764691671622,0.21974986,91013.0,91007.0,0.01098816]
[1764691671825,0.21975365,91011.0,91006.0,0.03296485]
[1764691672032,0.21974986,91013.0,91006.0,0.01098828]
[1764691672033,0.00343576,91010.0,91006.0,0.01098828]
[1764691672203,0.02944206,91030.0,91005.0,0.04975]
[1764691672393,0.0269906,91022.0,91011.0,0.01098768]
[1764691672592,0.21972696,91023.0,91011.0,0.01098768]
[1764691672593,0.0269906,91021.0,91012.0,0.03296268]
[1764691672814,0.0269906,91020.0,91013.0,0.01788]
[1764691673012,0.0269906,91019.0,91013.0,0.01788]
[1764691673216,0.0269906,91018.0,91014.0,0.09796]
[1764691673575,0.0269906,91017.0,91015.0,0.02197439]
[1764691673868,0.01098394,91042.0,91013.0,0.01788]
[1764691673869,0.2197055,91031.0,91026.0,0.04975]
[1764691674063,0.02699071,91030.0,91027.0,0.01788]
[1764691674268,0.02699071,91029.0,91028.0,0.09796]
[1764691674638,0.02699071,91029.0,91027.0,0.01788]
[1764691674639,0.24670091,91029.0,91027.0,0.01788]
[1764691674844,0.24670091,91029.0,91026.0,0.04975]
[1764691674845,0.21971502,91027.0,91026.0,0.04975]
[1764691675057,0.24670573,91027.0,91026.0,0.06763]
[1764691675423,0.27614779,91027.0,91026.0,0.06763]
[1764691675645,0.24670573,91027.0,91026.0,0.06763]
[1764691675849,0.02699071,91027.0,91026.0,0.06763]
[1764691676050,0.02699071,91027.0,91026.0,0.12933]
[1764691676405,0.02699071,91027.0,91026.0,0.22729]
[1764691676753,0.05643679,91027.0,91026.0,0.12933]
[1764691676959,0.0564377,91027.0,91026.0,0.12866243]
[1764691677207,0.02699071,91027.0,91026.0,0.12866243]
[1764691677774,0.02699071,91027.0,91026.0,0.04908243]
[1764691678020,0.02699071,91027.0,91026.0,0.06692243]
[1764691678575,0.02699071,91027.0,91026.0,0.06660243]
[1764691679008,0.02699071,91027.0,91026.0,0.16456243]
[1764691679210,0.02699071,91027.0,91026.0,0.22626243]
[1764691679941,0.02699071,91027.0,91026.0,0.44597987]
[1764691680145,0.02355543,91027.0,91026.0,0.44597987]
[1764691680372,0.21968606,91039.0,91032.0,0.01098514]
[1764691680505,0.24668889,91038.0,91036.0,0.0617]
[1764691680696,0.02700041,91037.0,91036.0,0.0617]
[1764691680953,0.02700041,91037.0,91036.0,0.07954]
[1764691681113,0.21971261,91028.0,91027.0,0.09796]
[1764691681292,0.24671302,91028.0,91027.0,0.01784]
[1764691681501,0.02944699,91040.0,91035.0,0.01098478]
[1764691681717,0.02700735,91039.0,91033.0,0.01098502]
[1764691681921,0.02700735,91038.0,91037.0,0.21968962]
[1764691682124,0.02700735,91038.0,91037.0,0.23752962]
[1764691682359,0.02700735,91038.0,91037.0,0.07954]
[1764691682567,0.02700735,91038.0,91037.0,0.1775]
[1764691682768,0.02944699,91055.0,91053.0,0.21965229]
[1764691682977,0.02700557,91054.0,91053.0,0.21965229]
[1764691683181,0.02700557,91054.0,91053.0,0.25948429]
[1764691683383,0.02700557,91054.0,91053.0,0.32118429]
[1764691683683,0.00125,91065.0,91063.0,0.21962816]
[1764691683886,0.03923758,91080.0,91076.0,0.21959682]
[1764691684036,0.03923758,91085.0,91083.0,0.21957994]
[1764691684219,0.03923758,91087.0,91086.0,0.03124]
[1764691684413,0.00037921,91087.0,91086.0,0.03124]
[1764691684616,0.00037921,91087.0,91086.0,0.1909]
[1764691685592,0.00037921,91087.0,91086.0,0.212892]
[1764691685868,0.00037921,91087.0,91086.0,0.1909]
[1764691686428,0.00037921,91087.0,91086.0,0.20874]
[1764691687052,0.00037921,91087.0,91086.0,0.1909]
[1764691687279,0.00037921,91087.0,91086.0,0.03124]
[1764691687495,0.00037921,91087.0,91086.0,0.2101]
[1764691688380,0.00037921,91087.0,91086.0,0.19226]
[1764691688578,0.00037921,91087.0,91086.0,0.2101]
[1764691688964,0.00037921,91087.0,91086.0,0.19226]
[1764691689168,0.00037921,91087.0,91086.0,0.2101]
[1764691689587,0.00037921,91087.0,91086.0,0.21006]
[1764691689917,0.00037921,91087.0,91086.0,0.19226]
[1764691690133,0.00037921,91087.0,91086.0,0.21006]
[1764691690360,0.00037921,91087.0,91086.0,0.19226]
[1764691690561,0.00037921,91087.0,91086.0,0.21006]
[1764691691120,0.00037921,91087.0,91086.0,0.19226]
[1764691691520,0.00037921,91087.0,91086.0,0.42963271]
[1764691691745,0.00037921,91087.0,91086.0,0.21006]
[1764691692329,0.00037921,91087.0,91061.0,0.09954]
[1764691692529,0.01098128,91064.0,91061.0,0.03298]
[1764691692730,0.23057371,91078.0,91068.0,0.0109808]
[1764691693048,0.01098044,91071.0,91067.0,0.21961785]
[1764691693250,0.01098068,91069.0,91062.0,0.0178]
[1764691693454,0.21962334,91065.0,91063.0,0.02060246]
[1764691693723,0.0109814,91063.0,91057.0,0.01098213]
[1764691694010,0.0109814,91063.0,91052.0,0.00023549]
[1764691694011,0.21965093,91054.0,91052.0,0.00023549]
[1764691694211,0.03925694,91068.0,91053.0,0.0178]
[1764691694438,0.01098152,91062.0,91053.0,0.24843302]
[1764691694641,0.01098128,91064.0,91053.0,0.0178]
[1764691694923,0.01098189,91059.0,91055.0,0.01098237]
[1764691695122,0.00037897,91059.0,91058.0,0.2306212]
[1764691695330,0.00037897,91059.0,91058.0,0.2921012]
[1764691695531,0.00037897,91059.0,91058.0,0.4094412]
[1764691696477,0.00037897,91059.0,91058.0,0.4314332]
[1764691696899,0.00037897,91059.0,91058.0,0.4094412]
[1764691697108,0.00037897,91059.0,91058.0,0.4314332]
[1764691698333,0.06270574,91096.0,91095.0,0.21955101]
[1764691698509,0.02356249,91096.0,91095.0,0.23735101]
[1764691698833,0.00011369,91096.0,91095.0,0.23735101]
[1764691699051,0.00011369,91096.0,91095.0,0.42036301]
[1764691699264,0.00011369,91096.0,91095.0,0.39837101]
[1764691699797,0.00011369,91096.0,91095.0,0.07928]
[1764691700206,0.00011369,91096.0,91095.0,0.17882]
[1764691700915,0.01097815,91090.0,91082.0,0.09954]
[1764691701065,0.01109112,91096.0,91087.0,0.01097851]
[1764691701275,0.21955918,91092.0,91087.0,0.23054802]
[1764691701479,0.01097803,91091.0,91088.0,0.0178]
[1764691701660,0.01097803,91091.0,91089.0,0.0178]
[1764691701854,0.00011369,91096.0,91093.0,0.21955319]
[1764691702062,0.00011369,91096.0,91095.0,0.06148]
[1764691702461,0.00011369,91096.0,91095.0,0.16102]
[1764691702669,0.00011369,91096.0,91095.0,0.17882]
[1764691703268,0.00011369,91096.0,91095.0,0.2227671]
[1764691703690,0.00011369,91096.0,91095.0,0.2049671]
[1764691703891,0.00011369,91096.0,91095.0,0.2007751]
[1764691704097,0.00011369,91096.0,91095.0,0.2227671]
[1764691704499,0.00011369,91096.0,91095.0,0.2007751]
[1764691705222,0.00011369,91096.0,91095.0,0.2227671]
[1764691705629,0.00011369,91096.0,91095.0,0.1829751]